[Event "Betsys MČR v online bleskovém šachu 2021"]
[Site "Chess.com"]
[Date "2021.04.17"]
[Round "9"]
[White "Tynano"]
[Black "mendryxchess"]
[Result "0-1"]
[WhiteElo "1945"]
[BlackElo "1798"]
[TimeControl "180+1"]
[EndTime "10:31:22 PDT"]
[Termination "Uživatel mendryxchess zvítězil po vzdání soupeře"]

1. e4 {[%clk 0:03:00.9]} 1... c5 {[%clk 0:02:59.7]} 2. Nf3 {[%clk 0:03:00.5]}
2... e6 {[%clk 0:02:59.8]} 3. d4 {[%clk 0:03:00.5]} 3... cxd4 {[%clk 0:03:00.7]}
4. Nxd4 {[%clk 0:03:01.1]} 4... a6 {[%clk 0:03:01.1]} 5. Nc3 {[%clk 0:03:00.5]}
5... Qc7 {[%clk 0:03:00.7]} 6. Bd3 {[%clk 0:02:59.4]} 6... Nf6 {[%clk
0:02:57.5]} 7. Bd2 {[%clk 0:02:57.5]} 7... Bc5 {[%clk 0:02:57.6]} 8. Nb3 {[%clk
0:02:56.4]} 8... Be7 {[%clk 0:02:57.6]} 9. Qf3 {[%clk 0:02:54.1]} 9... Nc6
{[%clk 0:02:49.6]} 10. O-O-O {[%clk 0:02:44.5]} 10... b5 {[%clk 0:02:45.9]} 11.
Kb1 {[%clk 0:02:41.3]} 11... b4 {[%clk 0:02:31.3]} 12. Ne2 {[%clk 0:02:22.5]}
12... a5 {[%clk 0:02:29.1]} 13. Nbd4 {[%clk 0:02:18.9]} 13... Bb7 {[%clk
0:02:24.1]} 14. Nb5 {[%clk 0:02:17.9]} 14... Qb8 {[%clk 0:02:16.6]} 15. Bf4
{[%clk 0:02:17]} 15... e5 {[%clk 0:02:08.6]} 16. Bg3 {[%clk 0:02:12.5]} 16...
Ba6 {[%clk 0:02:05.9]} 17. Nbd4 {[%clk 0:02:08.4]} 17... Nxd4 {[%clk 0:01:57.3]}
18. Nxd4 {[%clk 0:02:08]} 18... Bxd3 {[%clk 0:01:55.3]} 19. Rxd3 {[%clk
0:02:01.6]} 19... a4 {[%clk 0:01:46.8]} 20. Nf5 {[%clk 0:02:01.2]} 20... Bf8
{[%clk 0:01:44.4]} 21. Rhd1 {[%clk 0:01:59.7]} 21... a3 {[%clk 0:01:37.8]} 22.
b3 {[%clk 0:01:54.5]} 22... Qc7 {[%clk 0:01:34]} 23. Nd6+ {[%clk 0:01:34.2]}
23... Bxd6 {[%clk 0:01:31.7]} 24. Rxd6 {[%clk 0:01:35.1]} 24... Rc8 {[%clk
0:01:32]} 25. Qd3 {[%clk 0:01:33.9]} 25... Qc5 {[%clk 0:01:20]} 26. f4 {[%clk
0:01:09.9]} 26... exf4 {[%clk 0:01:02.2]} 27. Bxf4 {[%clk 0:01:09.7]} 27... O-O
{[%clk 0:01:02.7]} 28. Rxf6 {[%clk 0:00:34.7]} 28... gxf6 {[%clk 0:01:01.4]} 29.
Bh6 {[%clk 0:00:34.7]} 29... Qe5 {[%clk 0:00:37.3]} 30. Qg3+ {[%clk 0:00:29.2]}
30... Qxg3 {[%clk 0:00:36.2]} 31. hxg3 {[%clk 0:00:30.1]} 31... Rfd8 {[%clk
0:00:35.7]} 32. Rd6 {[%clk 0:00:29.2]} 32... Rc3 {[%clk 0:00:32.5]} 33. Rxf6
{[%clk 0:00:26.1]} 33... Rxg3 {[%clk 0:00:32.5]} 34. Rf2 {[%clk 0:00:26.3]}
34... Re8 {[%clk 0:00:31.4]} 35. Bf4 {[%clk 0:00:24.5]} 35... Rg4 {[%clk
0:00:29.3]} 36. e5 {[%clk 0:00:24]} 36... Rh4 {[%clk 0:00:24.7]} 37. Kc1 {[%clk
0:00:22.1]} 37... Rh1+ {[%clk 0:00:23.6]} 38. Kd2 {[%clk 0:00:21.5]} 38... Ra1
{[%clk 0:00:24]} 39. Rf3 {[%clk 0:00:19.5]} 39... Rxa2 {[%clk 0:00:23.7]} 40.
Rg3+ {[%clk 0:00:19.8]} 40... Kf8 {[%clk 0:00:24.2]} 41. Bg5 {[%clk 0:00:19.5]}
41... Rb2 {[%clk 0:00:21.4]} 42. Rh3 {[%clk 0:00:16.7]} 42... Kg8 {[%clk
0:00:20.1]} 43. Bf6 {[%clk 0:00:15.5]} 43... a2 {[%clk 0:00:19.3]} 44. Rg3+
{[%clk 0:00:15.4]} 44... Kf8 {[%clk 0:00:19.9]} 45. Rg7 {[%clk 0:00:15.2]} 45...
a1=Q {[%clk 0:00:18.5]} 46. Rxh7 {[%clk 0:00:15.3]} 46... Rxc2+ {[%clk
0:00:13.4]} 47. Kxc2 {[%clk 0:00:15.1]} 47... Qa2+ {[%clk 0:00:13.7]} 48. Kd3
{[%clk 0:00:14.3]} 48... Qxb3+ {[%clk 0:00:13.7]} 49. Ke4 {[%clk 0:00:14.4]}
49... Qc4+ {[%clk 0:00:13.6]} 50. Kf3 {[%clk 0:00:10.6]} 50... Qf1+ {[%clk
0:00:13.3]} 51. Kg3 {[%clk 0:00:08.9]} 51... Qd3+ {[%clk 0:00:13.6]} 52. Kh4
{[%clk 0:00:08.5]} 52... Qxh7+ {[%clk 0:00:14.5]} 53. Kg5 {[%clk 0:00:08.6]}
53... Qg6+ {[%clk 0:00:14.6]} 54. Kf4 {[%clk 0:00:09]} 54... Re6 {[%clk
0:00:14.7]} 55. g4 {[%clk 0:00:08.9]} 55... Rxf6+ {[%clk 0:00:15.1]} 56. exf6
{[%clk 0:00:09.8]} 56... Qxf6+ {[%clk 0:00:16]} 0-1

[Event "Betsys MČR v online bleskovém šachu 2021"]
[Site "Chess.com"]
[Date "2021.04.17"]
[Round "9"]
[White "Zelezny1984"]
[Black "AJedlicka"]
[Result "1-0"]
[WhiteElo "2066"]
[BlackElo "2197"]
[TimeControl "180+1"]
[EndTime "10:31:24 PDT"]
[Termination "Uživatel Zelezny1984 zvítězil na čas"]

1. e4 {[%clk 0:03:00.9]} 1... c5 {[%clk 0:02:58.1]} 2. Nc3 {[%clk 0:03:01]} 2...
Nc6 {[%clk 0:02:56.9]} 3. g3 {[%clk 0:03:01.4]} 3... g6 {[%clk 0:02:56.1]} 4.
Bg2 {[%clk 0:03:02]} 4... Bg7 {[%clk 0:02:54.9]} 5. d3 {[%clk 0:03:02.9]} 5...
d6 {[%clk 0:02:51.8]} 6. Nh3 {[%clk 0:03:03.4]} 6... Nf6 {[%clk 0:02:50.7]} 7.
O-O {[%clk 0:03:02.2]} 7... O-O {[%clk 0:02:50.3]} 8. f4 {[%clk 0:03:02.6]} 8...
Rb8 {[%clk 0:02:49.9]} 9. Nf2 {[%clk 0:03:02.5]} 9... Nd4 {[%clk 0:02:48.6]} 10.
g4 {[%clk 0:02:52.2]} 10... b5 {[%clk 0:02:46.7]} 11. f5 {[%clk 0:02:48.8]}
11... b4 {[%clk 0:02:46]} 12. Ne2 {[%clk 0:02:45.7]} 12... Nxe2+ {[%clk
0:02:44.2]} 13. Qxe2 {[%clk 0:02:46.6]} 13... a5 {[%clk 0:02:36]} 14. h4 {[%clk
0:02:46.5]} 14... a4 {[%clk 0:02:33]} 15. Rb1 {[%clk 0:02:38.1]} 15... Ba6
{[%clk 0:02:24.1]} 16. Bf3 {[%clk 0:02:14.2]} 16... b3 {[%clk 0:02:23.4]} 17.
axb3 {[%clk 0:02:07.3]} 17... axb3 {[%clk 0:02:22.9]} 18. c3 {[%clk 0:02:06.1]}
18... Nd7 {[%clk 0:02:21.9]} 19. h5 {[%clk 0:02:00.9]} 19... Ne5 {[%clk
0:02:20.6]} 20. Bg2 {[%clk 0:01:23.6]} 20... e6 {[%clk 0:02:13.2]} 21. hxg6
{[%clk 0:01:01.9]} 21... hxg6 {[%clk 0:02:10]} 22. c4 {[%clk 0:01:02.3]} 22...
Bb7 {[%clk 0:02:01.4]} 23. Be3 {[%clk 0:00:49.5]} 23... exf5 {[%clk 0:01:58.2]}
24. gxf5 {[%clk 0:00:47.4]} 24... gxf5 {[%clk 0:01:53.2]} 25. exf5 {[%clk
0:00:45]} 25... Bxg2 {[%clk 0:01:52.2]} 26. Kxg2 {[%clk 0:00:45.9]} 26... Qd7
{[%clk 0:01:43.5]} 27. Ne4 {[%clk 0:00:27.2]} 27... f6 {[%clk 0:01:26.6]} 28.
Bf4 {[%clk 0:00:20.6]} 28... Kf7 {[%clk 0:01:18.7]} 29. Bxe5 {[%clk 0:00:18.9]}
29... dxe5 {[%clk 0:01:16.8]} 30. Nxc5 {[%clk 0:00:17.4]} 30... Qc6+ {[%clk
0:01:15.2]} 31. Ne4 {[%clk 0:00:17.8]} 31... Rh8 {[%clk 0:01:13.5]} 32. Rh1
{[%clk 0:00:17.1]} 32... Rbg8 {[%clk 0:01:10.1]} 33. Kf2 {[%clk 0:00:14.5]}
33... Bh6 {[%clk 0:01:04.4]} 34. Ra1 {[%clk 0:00:09.7]} 34... Qb6+ {[%clk
0:01:02]} 35. c5 {[%clk 0:00:06.5]} 35... Qb8 {[%clk 0:00:44.9]} 36. Qh5+ {[%clk
0:00:06.3]} 36... Ke7 {[%clk 0:00:43.1]} 37. Qf3 {[%clk 0:00:05.9]} 37... Bf4
{[%clk 0:00:38.1]} 38. Rxh8 {[%clk 0:00:06.8]} 38... Rxh8 {[%clk 0:00:37.9]} 39.
Rh1 {[%clk 0:00:06.4]} 39... Rxh1 {[%clk 0:00:34]} 40. Qxh1 {[%clk 0:00:07.3]}
40... Qb5 {[%clk 0:00:30.1]} 41. Qh7+ {[%clk 0:00:07.7]} 41... Kd8 {[%clk
0:00:27]} 42. Ke2 {[%clk 0:00:07.8]} 42... Qc6 {[%clk 0:00:20.5]} 43. Qh8+
{[%clk 0:00:07.6]} 43... Ke7 {[%clk 0:00:20.1]} 44. Qg7+ {[%clk 0:00:08.1]}
44... Kd8 {[%clk 0:00:19.2]} 45. Qxf6+ {[%clk 0:00:08.4]} 45... Qxf6 {[%clk
0:00:17.9]} 46. Nxf6 {[%clk 0:00:09.3]} 46... Ke7 {[%clk 0:00:18.1]} 47. Nd5+
{[%clk 0:00:09.7]} 47... Kd7 {[%clk 0:00:18]} 48. Nxf4 {[%clk 0:00:10.6]} 48...
exf4 {[%clk 0:00:17.5]} 49. Kf3 {[%clk 0:00:11.1]} 49... Kc6 {[%clk 0:00:17.1]}
50. Kxf4 {[%clk 0:00:11.3]} 50... Kxc5 {[%clk 0:00:17.2]} 51. Kg5 {[%clk
0:00:11.3]} 51... Kd6 {[%clk 0:00:17.4]} 52. Kg6 {[%clk 0:00:11.3]} 52... Ke7
{[%clk 0:00:13]} 53. Kg7 {[%clk 0:00:11.5]} 53... Kd6 {[%clk 0:00:08]} 54. f6
{[%clk 0:00:12.4]} 1-0

[Event "Betsys MČR v online bleskovém šachu 2021"]
[Site "Chess.com"]
[Date "2021.04.17"]
[Round "9"]
[White "MichalTrhal"]
[Black "lockerbieQ"]
[Result "1-0"]
[WhiteElo "1928"]
[BlackElo "1731"]
[TimeControl "180+1"]
[EndTime "10:31:24 PDT"]
[Termination "Uživatel MichalTrhal zvítězil po vzdání soupeře"]

1. c4 {[%clk 0:03:00.9]} 1... e5 {[%clk 0:02:57.2]} 2. Nf3 {[%clk 0:02:59.1]}
2... Nc6 {[%clk 0:02:51.5]} 3. d4 {[%clk 0:02:55.7]} 3... exd4 {[%clk
0:02:48.1]} 4. Nxd4 {[%clk 0:02:54.9]} 4... Nxd4 {[%clk 0:02:42.5]} 5. Qxd4
{[%clk 0:02:52.5]} 5... Nf6 {[%clk 0:02:42.3]} 6. Nc3 {[%clk 0:02:51.8]} 6...
Be7 {[%clk 0:02:34.8]} 7. g3 {[%clk 0:02:52]} 7... O-O {[%clk 0:02:31.7]} 8. Bg2
{[%clk 0:02:52.5]} 8... c6 {[%clk 0:02:20.1]} 9. O-O {[%clk 0:02:50.2]} 9... d6
{[%clk 0:02:11.7]} 10. e4 {[%clk 0:02:49.9]} 10... Qc7 {[%clk 0:02:07.2]} 11. b3
{[%clk 0:02:49.8]} 11... a6 {[%clk 0:01:56.5]} 12. Bb2 {[%clk 0:02:49.7]} 12...
b5 {[%clk 0:01:47.9]} 13. cxb5 {[%clk 0:02:48.3]} 13... axb5 {[%clk 0:01:47.9]}
14. Rac1 {[%clk 0:02:43.8]} 14... Qd7 {[%clk 0:01:39.9]} 15. Rfd1 {[%clk
0:02:24.4]} 15... Qe6 {[%clk 0:01:04.4]} 16. h3 {[%clk 0:02:10.2]} 16... c5
{[%clk 0:01:01]} 17. Qd2 {[%clk 0:02:06.8]} 17... b4 {[%clk 0:00:59.9]} 18. Nd5
{[%clk 0:02:03.3]} 18... Nxd5 {[%clk 0:00:54.5]} 19. exd5 {[%clk 0:02:01.3]}
19... Qg6 {[%clk 0:00:47.7]} 20. Ra1 {[%clk 0:01:51.3]} 20... Bf6 {[%clk
0:00:33.9]} 21. Re1 {[%clk 0:01:51]} 21... Bxb2 {[%clk 0:00:30.7]} 22. Qxb2
{[%clk 0:01:50.5]} 22... Bf5 {[%clk 0:00:24.9]} 23. a4 {[%clk 0:01:48.7]} 23...
bxa3 {[%clk 0:00:23.9]} 24. Rxa3 {[%clk 0:01:48.6]} 24... Rxa3 {[%clk
0:00:19.8]} 25. Qxa3 {[%clk 0:01:48.4]} 25... Qh6 {[%clk 0:00:18.9]} 26. g4
{[%clk 0:01:43.2]} 26... Qd2 {[%clk 0:00:18.1]} 27. Qc1 {[%clk 0:01:39.8]} 27...
Qxc1 {[%clk 0:00:17.3]} 28. Rxc1 {[%clk 0:01:39.8]} 28... Bd3 {[%clk 0:00:16.2]}
29. Re1 {[%clk 0:01:32.1]} 29... Rb8 {[%clk 0:00:15.2]} 30. Re3 {[%clk
0:01:29.1]} 30... Bc2 {[%clk 0:00:14.1]} 31. Re7 {[%clk 0:01:17.3]} 31... Kf8
{[%clk 0:00:13.7]} 32. Rd7 {[%clk 0:01:16.8]} 32... Bxb3 {[%clk 0:00:13.9]} 33.
Rxd6 {[%clk 0:01:16.8]} 33... c4 {[%clk 0:00:11.8]} 34. Rc6 {[%clk 0:01:16.8]}
34... Rd8 {[%clk 0:00:10.8]} 35. Kf1 {[%clk 0:01:12.9]} 35... Ke7 {[%clk
0:00:07.6]} 36. Rc7+ {[%clk 0:01:09.1]} 36... Rd7 {[%clk 0:00:07.6]} 37. Rc6
{[%clk 0:01:05.9]} 37... Rd6 {[%clk 0:00:07.4]} 38. Rc7+ {[%clk 0:01:04.3]}
38... Rd7 {[%clk 0:00:07.8]} 39. Rc5 {[%clk 0:01:03.1]} 39... Kd6 {[%clk
0:00:06.7]} 40. Rc6+ {[%clk 0:01:02.8]} 40... Ke5 {[%clk 0:00:06.7]} 41. Ke2
{[%clk 0:01:02]} 41... Kd4 {[%clk 0:00:05.3]} 42. Kd2 {[%clk 0:00:59.8]} 42...
c3+ {[%clk 0:00:03.3]} 43. Rxc3 {[%clk 0:00:58.8]} 43... Bxd5 {[%clk 0:00:03]}
44. Rd3+ {[%clk 0:00:48.5]} 44... Ke5 {[%clk 0:00:03.3]} 45. f4+ {[%clk
0:00:47.3]} 45... Ke6 {[%clk 0:00:03.1]} 46. f5+ {[%clk 0:00:45.2]} 46... Ke5
{[%clk 0:00:03.6]} 47. Ke3 {[%clk 0:00:42.1]} 47... Bc6 {[%clk 0:00:02.9]} 48.
Bxc6 {[%clk 0:00:40.3]} 48... Rxd3+ {[%clk 0:00:03.2]} 49. Kxd3 {[%clk
0:00:40.4]} 49... Kf4 {[%clk 0:00:03.7]} 50. Ke2 {[%clk 0:00:33]} 50... Kg3
{[%clk 0:00:04]} 51. Bd5 {[%clk 0:00:28.3]} 51... f6 {[%clk 0:00:03.1]} 52. Bg8
{[%clk 0:00:26.2]} 52... h6 {[%clk 0:00:02.9]} 53. Bf7 {[%clk 0:00:25.9]} 53...
Kxh3 {[%clk 0:00:03.1]} 54. Bh5 {[%clk 0:00:25.2]} 54... Kh4 {[%clk 0:00:03.1]}
55. Kf3 {[%clk 0:00:24.9]} 55... Kg5 {[%clk 0:00:03.5]} 56. Ke4 {[%clk
0:00:24.6]} 56... Kh4 {[%clk 0:00:03.9]} 57. Kd5 {[%clk 0:00:24.6]} 57... Kg5
{[%clk 0:00:03.4]} 58. Ke6 {[%clk 0:00:24.6]} 58... Kf4 {[%clk 0:00:03]} 59. Kf7
{[%clk 0:00:24.6]} 59... Ke5 {[%clk 0:00:02.5]} 60. Kxg7 {[%clk 0:00:24.8]} 1-0

[Event "Betsys MČR v online bleskovém šachu 2021"]
[Site "Chess.com"]
[Date "2021.04.17"]
[Round "9"]
[White "Kijonker"]
[Black "PaulS_CR"]
[Result "0-1"]
[WhiteElo "1468"]
[BlackElo "1835"]
[TimeControl "180+1"]
[EndTime "10:31:25 PDT"]
[Termination "Uživatel PaulS_CR zvítězil po vzdání soupeře"]

1. e4 {[%clk 0:03:00.9]} 1... e6 {[%clk 0:02:57.9]} 2. Nf3 {[%clk 0:03:00.2]}
2... d5 {[%clk 0:02:56.8]} 3. Nc3 {[%clk 0:02:59.9]} 3... d4 {[%clk 0:02:53.5]}
4. Ne2 {[%clk 0:02:59.8]} 4... c5 {[%clk 0:02:53.3]} 5. d3 {[%clk 0:02:59.5]}
5... Nc6 {[%clk 0:02:52.4]} 6. Bf4 {[%clk 0:02:56.9]} 6... Nf6 {[%clk
0:02:49.6]} 7. Ne5 {[%clk 0:02:51.8]} 7... Nxe5 {[%clk 0:02:47.4]} 8. Bxe5
{[%clk 0:02:51.6]} 8... Bd6 {[%clk 0:02:44.5]} 9. Bxd6 {[%clk 0:02:51.1]} 9...
Qxd6 {[%clk 0:02:44.4]} 10. Ng3 {[%clk 0:02:51.6]} 10... e5 {[%clk 0:02:42.8]}
11. Be2 {[%clk 0:02:51.2]} 11... O-O {[%clk 0:02:42]} 12. O-O {[%clk 0:02:50.9]}
12... b5 {[%clk 0:02:41.4]} 13. a3 {[%clk 0:02:46.6]} 13... Bd7 {[%clk
0:02:40.2]} 14. b4 {[%clk 0:02:46.1]} 14... a5 {[%clk 0:02:37.1]} 15. bxc5
{[%clk 0:02:43.4]} 15... Qxc5 {[%clk 0:02:36.9]} 16. Nh5 {[%clk 0:02:36.2]}
16... Nxh5 {[%clk 0:02:31.9]} 17. Bxh5 {[%clk 0:02:35.5]} 17... Rfc8 {[%clk
0:02:30.9]} 18. Ra2 {[%clk 0:02:26.2]} 18... Be6 {[%clk 0:02:28.9]} 19. Rb2
{[%clk 0:02:25.8]} 19... b4 {[%clk 0:02:28.7]} 20. axb4 {[%clk 0:02:25.1]} 20...
axb4 {[%clk 0:02:27.2]} 21. Bg4 {[%clk 0:02:17.2]} 21... Bxg4 {[%clk 0:02:17.1]}
22. Qxg4 {[%clk 0:02:16.7]} 22... Qc3 {[%clk 0:02:16.3]} 23. Rfb1 {[%clk
0:02:13.6]} 23... Qxb2 {[%clk 0:02:09.7]} 24. Qxc8+ {[%clk 0:02:10.3]} 24...
Rxc8 {[%clk 0:02:08.7]} 25. Rxb2 {[%clk 0:02:11]} 25... f6 {[%clk 0:02:04.8]}
26. f3 {[%clk 0:02:10.9]} 26... Rc3 {[%clk 0:02:02.2]} 27. Kf2 {[%clk 0:02:10]}
27... b3 {[%clk 0:01:57.6]} 28. cxb3 {[%clk 0:02:07.2]} 28... Rxd3 {[%clk
0:01:57.4]} 29. b4 {[%clk 0:02:07.5]} 29... Ra3 {[%clk 0:01:55.8]} 30. b5 {[%clk
0:02:05.5]} 30... Ra7 {[%clk 0:01:55.1]} 31. Ke2 {[%clk 0:02:05.2]} 31... Kf7
{[%clk 0:01:53.3]} 32. Kd3 {[%clk 0:02:05.4]} 32... Ke6 {[%clk 0:01:52.7]} 33.
Kc4 {[%clk 0:02:05.4]} 33... Rc7+ {[%clk 0:01:46.7]} 34. Kb4 {[%clk 0:02:01.6]}
34... Kd7 {[%clk 0:01:45.8]} 35. b6 {[%clk 0:02:00.8]} 35... Rc1 {[%clk
0:01:33.3]} 36. Ka5 {[%clk 0:01:57.1]} 36... Kc8 {[%clk 0:01:31.4]} 37. b7+
{[%clk 0:01:48.4]} 37... Kb8 {[%clk 0:01:30.7]} 38. Kb6 {[%clk 0:01:48]} 38...
Rc7 {[%clk 0:01:27.7]} 39. Ka6 {[%clk 0:01:39.2]} 39... d3 {[%clk 0:01:05.9]}
40. Rd2 {[%clk 0:01:24.5]} 40... Rc3 {[%clk 0:01:02.9]} 41. Kb6 {[%clk 0:01:19]}
41... Rb3+ {[%clk 0:00:58.4]} 42. Kc6 {[%clk 0:01:18.4]} 42... h6 {[%clk
0:00:50.4]} 43. h3 {[%clk 0:01:01.2]} 43... Rxb7 {[%clk 0:00:46.6]} 44. Rxd3
{[%clk 0:01:00.6]} 44... Kc8 {[%clk 0:00:45.8]} 45. Rd2 {[%clk 0:00:45.5]} 45...
Rc7+ {[%clk 0:00:43.7]} 46. Kb6 {[%clk 0:00:43.9]} 46... Rc3 {[%clk 0:00:40.8]}
47. Kb5 {[%clk 0:00:40.6]} 47... Kc7 {[%clk 0:00:37.5]} 48. Kb4 {[%clk
0:00:40.5]} 48... Re3 {[%clk 0:00:32.5]} 49. Rc2+ {[%clk 0:00:36.3]} 49... Kd6
{[%clk 0:00:30.7]} 50. Rd2+ {[%clk 0:00:35.8]} 50... Ke7 {[%clk 0:00:29.4]} 51.
Kc4 {[%clk 0:00:35.1]} 51... h5 {[%clk 0:00:28.2]} 52. Kc5 {[%clk 0:00:32.4]}
52... g5 {[%clk 0:00:24.7]} 53. Kc6 {[%clk 0:00:31.4]} 53... Rc3+ {[%clk
0:00:23.2]} 54. Kb5 {[%clk 0:00:31.1]} 54... Re3 {[%clk 0:00:21.3]} 55. Kc4
{[%clk 0:00:29.1]} 55... g4 {[%clk 0:00:20.3]} 56. Kc5 {[%clk 0:00:28.4]} 56...
gxf3 {[%clk 0:00:19.3]} 57. gxf3 {[%clk 0:00:27.1]} 57... Rxf3 {[%clk
0:00:19.1]} 58. h4 {[%clk 0:00:25.4]} 58... Rf4 {[%clk 0:00:18.6]} 59. Kc6
{[%clk 0:00:23.6]} 59... Rxe4 {[%clk 0:00:18.3]} 60. Rd7+ {[%clk 0:00:23.4]}
60... Ke6 {[%clk 0:00:17.5]} 61. Rd6+ {[%clk 0:00:23.4]} 61... Kf5 {[%clk
0:00:16.5]} 62. Kd5 {[%clk 0:00:23.6]} 62... Rd4+ {[%clk 0:00:14.9]} 63. Kc5
{[%clk 0:00:23.3]} 63... Rxd6 {[%clk 0:00:14.7]} 0-1

[Event "Betsys MČR v online bleskovém šachu 2021"]
[Site "Chess.com"]
[Date "2021.04.17"]
[Round "9"]
[White "VildaSt"]
[Black "TomasOrnet1"]
[Result "0-1"]
[WhiteElo "1293"]
[BlackElo "1496"]
[TimeControl "180+1"]
[EndTime "10:31:25 PDT"]
[Termination "Uživatel TomasOrnet1 zvítězil matem"]

1. e4 {[%clk 0:03:00.9]} 1... e5 {[%clk 0:02:55.2]} 2. Nf3 {[%clk 0:03:00.9]}
2... Nc6 {[%clk 0:02:53.8]} 3. d4 {[%clk 0:03:00.6]} 3... exd4 {[%clk
0:02:51.9]} 4. Nxd4 {[%clk 0:03:00.5]} 4... Qf6 {[%clk 0:02:47.8]} 5. Be3 {[%clk
0:02:58]} 5... Bc5 {[%clk 0:02:45.5]} 6. c3 {[%clk 0:02:58]} 6... Bxd4 {[%clk
0:02:38]} 7. Bxd4 {[%clk 0:02:53.6]} 7... Nxd4 {[%clk 0:02:36.5]} 8. cxd4 {[%clk
0:02:50.4]} 8... Ne7 {[%clk 0:02:30.8]} 9. Nc3 {[%clk 0:02:48.2]} 9... O-O
{[%clk 0:02:25.4]} 10. Bd3 {[%clk 0:02:48]} 10... b6 {[%clk 0:02:22.5]} 11. Qc2
{[%clk 0:02:47.7]} 11... Bb7 {[%clk 0:02:16.9]} 12. O-O {[%clk 0:02:45.4]} 12...
Ng6 {[%clk 0:02:12.1]} 13. d5 {[%clk 0:02:35.2]} 13... c6 {[%clk 0:02:06.7]} 14.
dxc6 {[%clk 0:02:33]} 14... dxc6 {[%clk 0:02:05]} 15. b4 {[%clk 0:02:29.3]}
15... Rad8 {[%clk 0:01:58.2]} 16. a4 {[%clk 0:02:25.7]} 16... Nf4 {[%clk
0:01:54.9]} 17. Rad1 {[%clk 0:02:17.4]} 17... Qg5 {[%clk 0:01:49.1]} 18. g3
{[%clk 0:02:12.4]} 18... Ne6 {[%clk 0:01:36.1]} 19. b5 {[%clk 0:01:58.7]} 19...
c5 {[%clk 0:01:31.6]} 20. Qd2 {[%clk 0:01:53]} 20... Nd4 {[%clk 0:01:29.1]} 21.
Qxg5 {[%clk 0:01:51.9]} 21... Nf3+ {[%clk 0:01:26]} 22. Kg2 {[%clk 0:01:46.3]}
22... Nxg5 {[%clk 0:01:24.3]} 23. Be2 {[%clk 0:01:44]} 23... Nxe4 {[%clk
0:01:16.8]} 24. Nxe4 {[%clk 0:01:42.2]} 24... Bxe4+ {[%clk 0:01:15.2]} 25. f3
{[%clk 0:01:39.3]} 25... Bc2 {[%clk 0:01:13.2]} 26. Rxd8 {[%clk 0:01:33.5]}
26... Rxd8 {[%clk 0:01:10.5]} 27. Ra1 {[%clk 0:01:32.5]} 27... Rd2 {[%clk
0:01:05.8]} 28. Kf2 {[%clk 0:01:29.6]} 28... Bd3 {[%clk 0:01:04.8]} 29. Re1
{[%clk 0:01:24.8]} 29... Rxe2+ {[%clk 0:01:01.8]} 30. Rxe2 {[%clk 0:01:23.9]}
30... Bxe2 {[%clk 0:01:01.4]} 31. Kxe2 {[%clk 0:01:24.1]} 31... Kf8 {[%clk
0:01:00.8]} 32. Kd3 {[%clk 0:01:24]} 32... Ke7 {[%clk 0:01:00.8]} 33. Kc4 {[%clk
0:01:23.1]} 33... Kd6 {[%clk 0:01:00.2]} 34. h4 {[%clk 0:01:21]} 34... Ke5
{[%clk 0:00:58.7]} 35. Kd3 {[%clk 0:01:18.2]} 35... f5 {[%clk 0:00:54.7]} 36.
Ke3 {[%clk 0:01:11.1]} 36... g5 {[%clk 0:00:51.4]} 37. hxg5 {[%clk 0:01:10.4]}
37... Ke6 {[%clk 0:00:47.1]} 38. f4 {[%clk 0:01:02.3]} 38... Kf7 {[%clk
0:00:44.7]} 39. Kd3 {[%clk 0:01:01.6]} 39... Kg6 {[%clk 0:00:44.3]} 40. Ke3
{[%clk 0:00:59]} 40... h6 {[%clk 0:00:43.7]} 41. gxh6 {[%clk 0:00:57.3]} 41...
Kxh6 {[%clk 0:00:43.4]} 42. Kf3 {[%clk 0:00:57.5]} 42... Kh5 {[%clk 0:00:42.8]}
43. Ke3 {[%clk 0:00:53.4]} 43... Kg4 {[%clk 0:00:42.1]} 44. Kf2 {[%clk
0:00:53.1]} 44... c4 {[%clk 0:00:40.8]} 45. Ke3 {[%clk 0:00:50.7]} 45... Kxg3
{[%clk 0:00:39.8]} 46. Kd4 {[%clk 0:00:50.9]} 46... Kxf4 {[%clk 0:00:39.4]} 47.
Kxc4 {[%clk 0:00:51.1]} 47... Ke5 {[%clk 0:00:38.3]} 48. Kd3 {[%clk 0:00:51.2]}
48... Kd5 {[%clk 0:00:37.9]} 49. Ke3 {[%clk 0:00:51.3]} 49... Kc5 {[%clk
0:00:37.6]} 50. Kf4 {[%clk 0:00:51.6]} 50... Kb4 {[%clk 0:00:37.7]} 51. Kxf5
{[%clk 0:00:52]} 51... Kxa4 {[%clk 0:00:37.9]} 52. Ke4 {[%clk 0:00:52.2]} 52...
Kxb5 {[%clk 0:00:37.8]} 53. Kd3 {[%clk 0:00:52.3]} 53... Kc5 {[%clk 0:00:37.8]}
54. Kc3 {[%clk 0:00:52.2]} 54... b5 {[%clk 0:00:38.2]} 55. Kb3 {[%clk
0:00:52.4]} 55... a5 {[%clk 0:00:38.6]} 56. Kc3 {[%clk 0:00:52]} 56... a4 {[%clk
0:00:38.5]} 57. Kb2 {[%clk 0:00:52.1]} 57... b4 {[%clk 0:00:38.8]} 58. Ka2
{[%clk 0:00:51.8]} 58... Kc4 {[%clk 0:00:39.1]} 59. Kb2 {[%clk 0:00:51.8]} 59...
a3+ {[%clk 0:00:38.4]} 60. Ka2 {[%clk 0:00:51.3]} 60... Kc3 {[%clk 0:00:37.7]}
61. Kb1 {[%clk 0:00:50.9]} 61... Kb3 {[%clk 0:00:35.2]} 62. Ka1 {[%clk
0:00:50.8]} 62... Kc3 {[%clk 0:00:34.6]} 63. Ka2 {[%clk 0:00:50.8]} 63... b3+
{[%clk 0:00:32.6]} 64. Kb1 {[%clk 0:00:50.8]} 64... Kb4 {[%clk 0:00:29.1]} 65.
Ka1 {[%clk 0:00:50.8]} 65... Kc4 {[%clk 0:00:28.9]} 66. Kb1 {[%clk 0:00:49.8]}
66... Kc3 {[%clk 0:00:28.2]} 67. Ka1 {[%clk 0:00:46.5]} 67... b2+ {[%clk
0:00:26.6]} 68. Kb1 {[%clk 0:00:46.4]} 68... a2+ {[%clk 0:00:26.3]} 69. Kxa2
{[%clk 0:00:46.3]} 69... Kc2 {[%clk 0:00:26.2]} 70. Ka3 {[%clk 0:00:46.3]} 70...
b1=Q {[%clk 0:00:24.9]} 71. Ka4 {[%clk 0:00:46.5]} 71... Kc3 {[%clk 0:00:24.9]}
72. Ka5 {[%clk 0:00:46.5]} 72... Kc4 {[%clk 0:00:25.1]} 73. Ka6 {[%clk
0:00:46.7]} 73... Kc5 {[%clk 0:00:24.6]} 74. Ka7 {[%clk 0:00:46.9]} 74... Kc6
{[%clk 0:00:24.5]} 75. Ka8 {[%clk 0:00:47.1]} 75... Kc7 {[%clk 0:00:24.3]} 76.
Ka7 {[%clk 0:00:47.4]} 76... Qa1# {[%clk 0:00:23.9]} 0-1